[Event "44th Chess Olympiad Women 2022"]
[Site "Chennai"]
[Date "2022.07.30"]
[Round "2.16"]
[White "Liu, Yang Hazel"]
[Black "Pratyusha, Bodda"]
[Result "1/2-1/2"]
[ECO "D02"]
[WhiteElo "2046"]
[BlackElo "2310"]
[Annotator "TA"]
[PlyCount "84"]
[EventDate "2022.07.29"]
[EventType "team-tourn"]
[EventCountry "IND"]
[SourceTitle "playchess.com"]
[Source "ChessBase"]
[SourceQuality "1"]
[WhiteTeam "SGP"]
[BlackTeam "India"]
[BlackTeamCountry "IND"]
[TimeControl "40/5400+30:1800+30"]

{[%evp 9,84,0,17,12,17,7,14,9,6,6,6,0,9,0,4,0,0,0,6,0,0,-6,0,-8,0,0,0,0,0,0,14,10,6,0,7,-56,-47,-50,-47,-75,0,-50,-31,-29,23,38,97,95,95,101,90,85,122,122,137,135,110,121,203,94,107,55,52,55,37,32,32,32,32,32,17,0,47,0,55,0,27]} 1. d4 {[%emt 0:00:04]} d5 {[%emt 0:00:33]} 2. Nf3 {[%emt 0:00:17]} Nf6 {[%emt 0:00:08]} 3. Bf4 {[%emt 0:00:14]} c5 {[%emt 0:01:03]} 4. e3 {[%emt 0:00:35]} Nc6 {[%emt 0:00:07]} 5. Nbd2 {[%emt 0:00:30]} cxd4 {[%emt 0:01:48]} 6. exd4 {[%emt 0:02:39] D02: 1 d4 d5 2 Nf3 sidelines, including 2...Nf6 3 g3 and 2...Nf6 3 Bf4.} Qb6 {[%emt 0:01:10]} 7. Nb3 {[%emt 0:08:18]} Bg4 {[%emt 0:01:22] 7...Bf5 might become the main line.} 8. Be2 {[%emt 0:01:33]} e6 {[%emt 0:00:15]} 9. h3 {[%emt 0:01:32]} Bh5 {[%emt 0:01:04]} 10. O-O {[%emt 0:01:43]} Be7 {[%emt 0:00:04]} 11. c3 {[%emt 0:02:45]} O-O {[%emt 0:01:19]} 12. Ne5 {[%emt 0:16:04]} Bxe2 {[%emt 0:02:06]} 13. Qxe2 {[%emt 0:00:02]} Nxe5 {[%emt 0:06:59]} 14. Bxe5 {[%emt 0:04:20]} (14. dxe5 {is interesting.} Ne4 15. Rfd1 Rfc8 16. Rac1) 14... Nd7 {[%emt 0:07:03]} 15. Bg3 {[%emt 0:01:21]} a5 {[%emt 0:00:44][%cal Ba7a5,Ba5a4,Ba4a3][%mdl 32]} 16. Nc1 {[%emt 0:01:57] [#]} a4 $146 {[%emt 0:01:59]} ({Predecessor:} 16... Qa6 17. a4 Qxe2 18. Nxe2 Rfc8 19. Nc1 Nb6 20. Ne2 Rc4 21. b3 Rc6 22. Bf4 Rac8 {½-½ (33) Karjakin,S (2757)-Potkin,V (2571) Moscow 2021}) 17. Nd3 {[%emt 0:02:04]} a3 {[%emt 0:02:56]} 18. b3 {[%emt 0:08:15]} Rfc8 {[%emt 0:03:37]} 19. Rac1 {[%emt 0:01:20]} Rc6 {[%emt 0:04:30]} 20. Rc2 {[%emt 0:05:34]} Rac8 {[%emt 0:01:04]} 21. Rfc1 {[%emt 0:00:17]} Qa6 {[%emt 0:04:14]} 22. Nf4 {[%emt 0:15:26]} (22. Bf4 $11) 22... Qxe2 $15 {[%emt 0:01:49]} 23. Nxe2 {[%emt 0:04:05]} b5 {[%emt 0:00:11]} 24. Kf1 {[%emt 0:00:48]} b4 {[%emt 0:13:22]} (24... g5 $17) 25. c4 {[%emt 0:04:57]} (25. Ke1 $11) 25... dxc4 $1 {[%emt 0:01:00]} 26. bxc4 {[%emt 0:00:35]} Nb6 {[%emt 0:02:50]} ({Black should try} 26... f5) 27. c5 $11 {[%emt 0:00:35][%cal Oc5b6]} Nd5 {[%emt 0:00:03]} (27... Na4 $1 $14) 28. Nf4 $16 {[%emt 0:03:29] Strongly threatening Nxd5.} Bf6 {[%emt 0:11:18]} 29. Nxd5 {[%emt 0:05:46]} exd5 {[%emt 0:00:05]} 30. Rd2 {[%emt 0:00:47]} Bg5 {[%emt 0:04:07]} 31. f4 {[%emt 0:00:11]} Bd8 {[%emt 0:00:06] [#]} 32. Rb1 $1 {[%emt 0:00:56]} Ba5 {[%emt 0:00:05][%cal Ob4b3]} 33. Re2 {[%emt 0:00:18]} Kf8 {[%emt 0:02:22]} (33... Re6 $16) 34. Be1 {[%emt 0:00:56]} (34. f5 $18 {and White stays clearly on top.}) 34... Rb8 {[%emt 0:06:36]} 35. Re3 {[%emt 0:00:49]} (35. f5 $16) 35... Re6 $14 {[%emt 0:01:57]} 36. Rxe6 {[%emt 0:02:43]} fxe6 {[%emt 0:00:04][%mdl 4096] Endgame KRB-KRB} 37. Rb3 {[%emt 0:00:24]} Ke7 {[%emt 0:00:51]} 38. Bd2 {[%emt 0:02:22]} Kd7 {[%emt 0:00:27]} 39. Bc1 {[%emt 0:01:42]} Rf8 {[%emt 0:01:58]} 40. Bd2 {[%emt 0:00:36]} Rb8 {[%emt 0:00:17]} 41. Bc1 {[%emt 0:29:45]} Rf8 {[%emt 0:30:51]} 42. Bd2 {[%emt 0:00:01]} Rb8 {[%emt 0:01:03] Weighted Error Value: White=0.14 (very precise) /Black=0.11 (very precise)} 1/2-1/2

[Event "44th Chess Olympiad Women 2022"]
[Site "Chennai"]
[Date "2022.07.30"]
[Round "2.17"]
[White "Guo, Yu Han"]
[Black "Ratsma, Rosa"]
[Result "0-1"]
[ECO "E70"]
[WhiteElo "1630"]
[BlackElo "2226"]
[Annotator "TA"]
[PlyCount "84"]
[EventDate "2022.07.29"]
[EventType "team-tourn"]
[EventCountry "IND"]
[SourceTitle "playchess.com"]
[Source "ChessBase"]
[SourceQuality "1"]
[WhiteTeam "Canada"]
[BlackTeam "Netherlands"]
[WhiteTeamCountry "CAN"]
[BlackTeamCountry "NED"]
[TimeControl "40/5400+30:1800+30"]

{[%evp 11,84,36,31,0,0,-14,6,-7,1,0,0,0,0,0,0,-16,-14,-70,-59,-187,-189,-174,-168,-179,-154,-166,-85,-88,-106,-147,-130,-252,-260,-262,-263,-275,-243,-378,-361,-334,-152,-143,-165,-156,-147,-337,-321,-460,-442,-435,-443,-541,-428,-519,-441,-673,-684,-685,-661,-752,-718,-974,-820,-2087,-1327,-5669,-4974,-5717,-5202,-2185,-2172,-1931,-1830,-1770,-1523]} 1. d4 {[%emt 0:00:03]} Nf6 {[%emt 0:00:07]} 2. c4 {[%emt 0:00:20]} g6 {[%emt 0:00:19]} 3. Nc3 {[%emt 0:00:15]} Bg7 {[%emt 0:00:07]} 4. e4 {[%emt 0:00:17]} d6 {[%emt 0:00:08]} 5. Nge2 {[%emt 0:00:21]} O-O {[%emt 0:00:26]} 6. Ng3 {[%emt 0:00:35]} h5 {[%emt 0:00:39]} 7. h4 {E70: King's Indian: Miscellaneous lines with 4 e4, including 5 Nge2 and 5 Bd3 0-0 6 Nge2.} a6 {[%emt 0:01:03]} 8. Be2 {[%emt 0:00:44] [#]} b5 $146 {[%emt 0:00:00]} ({Predecessor:} 8... c5 9. d5 b5 10. cxb5 axb5 11. Nxb5 Ba6 12. a4 Ne8 13. Ra3 Nc7 14. O-O Nd7 {1-0 (48) Cuenca Jimenez,J (2506)-Del Rio de Angelis,S (2525) Linares 2018}) 9. cxb5 {[%emt 0:02:35] The position is equal.} axb5 {[%emt 0:00:02]} 10. Bxb5 {[%emt 0:01:18]} c6 {[%emt 0:00:15]} 11. Be2 {[%emt 0:03:06]} Qb6 $1 {[%emt 0:00:29]} 12. O-O {[%emt 0:01:38]} Ng4 {[%emt 0:00:59]} 13. Bxg4 {[%emt 0:07:35]} Bxg4 {[%emt 0:00:58]} 14. Nce2 {[%emt 0:04:04]} (14. Nge2 $11) 14... c5 $15 {[%emt 0:03:57][%cal Rc5d4] Black is more active.} 15. Qd3 {[%emt 0:11:00]} (15. d5 $15) 15... cxd4 $19 {[%emt 0:10:00]} 16. Nf4 {[%emt 0:04:51]} Nc6 {[%emt 0:08:22]} 17. Nd5 {[%emt 0:15:01]} Qa7 {[%emt 0:06:13]} 18. Bg5 {[%emt 0:03:07]} Ne5 {[%emt 0:06:54]} ({Black should play} 18... Be6 $19 19. Qb5 Bxd5 20. Qxd5 Rfc8) 19. Qd2 $17 {[%emt 0:12:05]} f6 $36 {[%emt 0:08:07][%mdl 2048] Black has strong initiative.} 20. Bh6 {[%emt 0:04:05] [#]} Nc4 $1 {[%emt 0:01:43]} 21. Qc1 {[%emt 0:05:01]} (21. Qc2 $17 {is a better defense.} Rfc8 22. Bxg7 Kxg7 23. Rfc1) 21... Rfc8 $19 {[%emt 0:01:48][%cal Oc4e3]} 22. Bxg7 {[%emt 0:00:49]} Kxg7 {[%emt 0:01:48]} 23. Qe1 {[%emt 0:04:12]} d3 {[%emt 0:09:25]} 24. b3 {[%emt 0:01:25]} (24. a4 {was called for.}) 24... d2 {[%emt 0:06:23]} 25. Qb1 {[%emt 0:00:07]} d1=Q {[%emt 0:04:08]} (25... Qd4 $19 {Strongly threatening ...Na3.} 26. a4 (26. bxc4 $2 Rab8 $19) 26... Nb2) 26. Rxd1 $17 {[%emt 0:00:03]} Bxd1 {[%emt 0:00:10]} 27. Qxd1 {[%emt 0:00:33]} Ne5 {[%emt 0:00:44]} 28. Ne2 $2 {[%emt 0:02:54] [#]} (28. Nf1 $17) 28... Ng4 $1 $19 {[%emt 0:01:22]} 29. Qd4 {[%emt 0:00:56]} (29. Qf1 $142) 29... Qxd4 {[%emt 0:01:24] Black is clearly winning.} 30. Nxd4 {[%emt 0:00:05] [#]} Rxa2 {[%emt 0:00:30][%cal Ra2a1][%mdl 512]} 31. Rb1 {[%emt 0:02:43]} (31. Rf1 Kf7) 31... Rb2 {[%emt 0:06:03][%cal Rb2b1]} 32. Ra1 {[%emt 0:00:46]} Ra8 {[%emt 0:01:32][%cal Ra8a1]} 33. Rc1 {[%emt 0:00:52]} (33. Rf1 $142) 33... Rxf2 {[%emt 0:01:55] And now ...Raa2 would win.} 34. Nc3 {[%emt 0:07:21]} Rd2 {[%emt 0:02:05]} 35. Ne6+ {[%emt 0:01:31]} Kf7 {[%emt 0:00:55]} 36. Nc7 {[%emt 0:01:01] [#]} Rc2 $3 {[%emt 0:03:14][%mdl 512]} 37. Rb1 {[%emt 0:00:56]} (37. Re1 Ra3) 37... Ra3 {[%emt 0:02:19][%cal Oa3b3] ( -> ...Rxb3!)} 38. N7d5 {[%emt 0:02:42] [#]} Rxb3 $3 {[%emt 0:00:50][%mdl 512]} 39. Ra1 {[%emt 0:00:53]} (39. g3 Rxb1+) 39... Rbxc3 {[%emt 0:01:02]} 40. Nxc3 {[%emt 0:00:07]} Rxc3 {[%emt 0:00:06]} 41. Kf1 {[%emt 0:30:11]} Rc4 {[%emt 0:30:47]} 42. Re1 {[%emt 0:00:19]} Ke6 {[%emt 0:00:13] Weighted Error Value: White=0.87/Black=0.27 (precise)} 0-1

[Event "44th Chess Olympiad Women 2022"]
[Site "Chennai"]
[Date "2022.07.30"]
[Round "2.18"]
[White "Eric, Jovana"]
[Black "Morales Flores, Monserrat"]
[Result "1-0"]
[ECO "B43"]
[WhiteElo "2271"]
[BlackElo "1946"]
[Annotator "TA"]
[PlyCount "55"]
[EventDate "2022.07.29"]
[EventType "team-tourn"]
[EventCountry "IND"]
[SourceTitle "playchess.com"]
[Source "ChessBase"]
[SourceQuality "1"]
[WhiteTeam "Serbia"]
[BlackTeam "Chile"]
[WhiteTeamCountry "SRB"]
[BlackTeamCountry "CHI"]
[TimeControl "40/5400+30:1800+30"]

{[%evp 15,55,17,25,13,17,16,38,0,33,22,58,54,53,46,90,83,143,108,152,156,171,178,170,171,169,177,159,141,213,141,161,92,170,168,214,139,465,489,576,599,609,611]} 1. e4 {[%emt 0:00:03]} c5 {[%emt 0:00:14]} 2. Nf3 {[%emt 0:00:09]} e6 {[%emt 0:00:06]} 3. d4 {[%emt 0:00:12]} cxd4 {[%emt 0:00:14]} 4. Nxd4 {[%emt 0:00:06]} a6 {[%emt 0:00:11]} 5. Nc3 {[%emt 0:00:30]} b5 {[%emt 0:00:30]} 6. Bd3 {[%emt 0:01:15]} Qc7 {[%emt 0:02:07]} 7. O-O {[%emt 0:01:08]} Bb7 {[%emt 0:01:40]} 8. Qe2 {[%emt 0:01:21]} Nf6 {[%emt 0:06:25]} 9. Bd2 {[%emt 0:06:58] B43: Sicilian: Kan Variation: 5 Nc3.} Nc6 {[%emt 0:03:18]} 10. Nxc6 {[%emt 0:03:15]} Bxc6 {[%emt 0:00:51]} 11. Bg5 {[%emt 0:08:01] [#] White is slightly better.} (11. e5 $5 {[%cal Re5f6]} Nd5 12. Nxd5 Bxd5 13. a4 $14) 11... Qe5 $146 {[%emt 0:26:31]} ({Predecessor:} 11... Bd6 12. Kh1 {½-½ (12) Folk,P (2246)-Chloupek,S (2360) Czech Republic 2000}) 12. f4 {[%emt 0:06:52]} Qc5+ {[%emt 0:00:31]} 13. Kh1 {[%emt 0:00:04]} Be7 {[%emt 0:02:42]} 14. e5 {[%emt 0:05:17]} Nd5 {[%emt 0:02:48]} 15. Ne4 $36 {[%emt 0:03:18][%cal Bc3e4,Be4d6,Bd6f7,Bf7d6,Bd6e8][%mdl 2080] White is in control.} Qe3 {[%emt 0:01:09]} (15... Qb6 $142) 16. Qh5 $16 {[%emt 0:01:19] Black must now prevent Bxe7.} g6 {[%emt 0:17:25] [#]} 17. Qh4 {[%emt 0:02:46] Hoping for Bxe7.} Bxg5 {[%emt 0:10:51]} 18. Nd6+ {[%emt 0:09:03]} (18. Nxg5 $6 Qd4 $16) (18. Qxg5 h6 19. Qh4 Kf8 $16) 18... Kd8 {[%emt 0:01:03]} 19. fxg5 {[%emt 0:04:42] Threatens to win with Rf3.} (19. Qxg5+ $6 Kc7 $14) 19... Kc7 {[%emt 0:01:32]} 20. Rae1 {[%emt 0:09:56]} (20. Rxf7 Qxe5 21. Ne4 Raf8 $17) (20. Nxf7 Rhf8 $16) 20... Qc5 {[%emt 0:01:21]} 21. Qg3 {[%emt 0:01:41] 0x0.002364072999dp-1022s more active pieces.} (21. Rxf7 $6 Raf8 $14) (21. Nxf7 Ne3 22. Rxe3 Qxe3 $16) 21... Raf8 {[%emt 0:10:28]} (21... Ne7 $16 22. c4 (22. Rxf7 Nf5 $16) 22... Nf5 23. Bxf5 gxf5) 22. Nxf7 {[%emt 0:05:16]} ({Inferior is} 22. Rxf7 Rxf7 23. Nxf7 Rf8 $11) 22... Rhg8 {[%emt 0:00:24]} 23. Be4 {[%emt 0:02:35]} ({White should play} 23. c3 $18) 23... Rg7 {[%emt 0:04:16]} (23... Ne7 $16 {was called for.}) 24. Nd6 $18 {[%emt 0:01:40]} Rxf1+ {[%emt 0:02:44]} 25. Rxf1 {[%emt 0:00:05]} Ne3 $2 {[%emt 0:00:26][%mdl 8192] [#]} (25... Rg8 $16 26. Bxd5 Qxd5) 26. Re1 {[%emt 0:00:35] White is clearly winning.} ({Not} 26. Rf8 Kb6 $16) 26... Nf5 {[%emt 0:00:43]} 27. Bxf5 {[%emt 0:00:11]} gxf5 {[%emt 0:00:11]} 28. Ne8+ {[%emt 0:00:05] Weighted Error Value: White=0.12 (very precise) /Black=0.57} 1-0

[Event "44th Chess Olympiad Women 2022"]
[Site "Chennai"]
[Date "2022.07.30"]
[Round "2.18"]
[White "Gajcin, Marina"]
[Black "Sanchez Tobar, Francisca Valenti"]
[Result "1-0"]
[ECO "C54"]
[WhiteElo "2271"]
[BlackElo "1839"]
[Annotator "TA"]
[PlyCount "67"]
[EventDate "2022.07.29"]
[EventType "team-tourn"]
[EventCountry "IND"]
[SourceTitle "playchess.com"]
[Source "ChessBase"]
[SourceQuality "1"]
[WhiteTeam "Serbia"]
[BlackTeam "Chile"]
[WhiteTeamCountry "SRB"]
[BlackTeamCountry "CHI"]
[TimeControl "40/5400+30:1800+30"]

{[%evp 12,67,21,21,24,22,8,10,8,18,10,8,9,3,7,0,27,25,41,10,318,324,325,81,81,91,162,134,657,677,679,675,655,636,650,370,478,477,988,548,495,0,956,1011,996,948,968,803,788,745,947,766,1035,1042,1310,987,973,959]} 1. e4 {[%emt 0:00:04]} e5 {[%emt 0:00:06]} 2. Nf3 {[%emt 0:00:08]} Nc6 {[%emt 0:00:07]} 3. Bc4 {[%emt 0:00:05]} Bc5 {[%emt 0:00:12]} 4. c3 {[%emt 0:00:41]} Nf6 {[%emt 0:00:24]} 5. d3 {[%emt 0:00:07]} d6 {[%emt 0:00:15]} 6. Nbd2 {[%emt 0:05:26]} a6 {[%emt 0:01:23]} 7. Bb3 {[%emt 0:00:29]} h6 {[%emt 0:01:48] C54: Giuoco Piano: 4 c3 Nf6, main lines with 5 d4 and 5 d3.} 8. h3 {[%emt 0:04:12]} Ba7 {[%emt 0:00:42]} 9. Nf1 {[%emt 0:00:41]} O-O {[%emt 0:09:29] The position is equal.} 10. Ng3 {[%emt 0:01:25]} Be6 {[%emt 0:02:10]} 11. O-O {[%emt 0:06:39]} Re8 {[%emt 0:01:57]} 12. Nh2 {[%emt 0:26:23]} Qd7 {[%emt 0:07:41]} 13. Qf3 {[%emt 0:03:02][%cal Oc1h6] [#]} Nh7 $146 {[%emt 0:17:48]} ({Predecessor:} 13... Bxb3 14. axb3 Nh7 15. Be3 Bxe3 16. fxe3 Re6 17. Ng4 Rf8 18. Nf5 h5 19. d4 Ng5 {0-1 (31) Popilski,G (2441)-Werle,J (2565) Groningen 2009}) 14. Ng4 {[%emt 0:04:01]} Rad8 {[%emt 0:11:45]} 15. Nh5 {[%emt 0:06:20][%cal Og4h6] Black must now prevent Nxh6+!} (15. Nf5 $5 {[%cal Rf3g3]} Kh8 16. Nge3 $11) 15... Bxb3 $4 {[%emt 0:16:21][%mdl 8192]} (15... Kh8 $11 {and Black stays safe.}) 16. Qg3 $18 {[%emt 0:11:33]} ({And not} 16. axb3 Re6 $11) 16... Kf8 {[%emt 0:07:47][%cal Of7f5] [#]} 17. axb3 $2 {[%emt 0:17:01]} (17. Bxh6 $1 $18 {and the rest is easy.} gxh6 18. Ngf6) 17... Qe6 $16 {[%emt 0:07:32]} 18. Kh1 {[%emt 0:02:13] Threatens to win with f4.} Qg6 {[%emt 0:03:06]} (18... g5 $16 {was called for.}) 19. Qh4 $18 {[%emt 0:00:26]} Ng5 $2 {[%emt 0:07:07][%mdl 8192]} (19... f6 $16) 20. f4 {[%emt 0:00:51]} exf4 {[%emt 0:01:52]} 21. Nxf4 {[%emt 0:00:16]} Qh7 {[%emt 0:00:13]} 22. Nd5 {[%emt 0:00:49][%csl LRc7,LRg5]} Qg6 {[%emt 0:01:11]} 23. Nxc7 {[%emt 0:01:12]} Re7 {[%emt 0:00:18]} 24. Nd5 {[%emt 0:00:21] Rf5 is the strong threat.} Red7 {[%emt 0:00:16]} (24... Rde8 $142 25. Nxh6 Qxh6 26. Nxe7 Nxe7 27. Bxg5 Qxh4 28. Bxh4 f6) 25. Nf4 {[%emt 0:00:55]} Qh7 {[%emt 0:00:22]} 26. Nd5 {[%emt 0:01:16]} (26. Bd2 $142) 26... Qg6 {[%emt 0:00:12]} 27. Rf5 {[%emt 0:00:49] White is clearly winning.} Ne6 {[%emt 0:01:17]} 28. Bd2 {[%emt 0:03:19]} Ne7 {[%emt 0:00:31]} 29. Nxe7 {[%emt 0:00:39]} Rxe7 {[%emt 0:00:10]} 30. Raf1 {[%emt 0:00:51]} Rde8 {[%emt 0:00:29]} 31. R1f3 {[%emt 0:01:39]} Bb6 {[%emt 0:00:54] [#]} 32. Nxh6 $1 {[%emt 0:01:02][%mdl 512]} gxh6 {[%emt 0:00:30]} (32... Rd8 33. Ng8) 33. Bxh6+ {[%emt 0:00:23]} Ng7 {[%emt 0:00:14]} 34. Rg5 {[%emt 0:00:31] Weighted Error Value: White=0.78/Black=0.82} 1-0

[Event "44th Chess Olympiad Women 2022"]
[Site "Chennai"]
[Date "2022.07.30"]
[Round "2.18"]
[White "Gomez Barrera, Javiera Belen"]
[Black "Blagojevic, Tijana"]
[Result "1/2-1/2"]
[ECO "C50"]
[WhiteElo "2210"]
[BlackElo "2330"]
[Annotator "TA"]
[PlyCount "60"]
[EventDate "2022.07.29"]
[EventType "team-tourn"]
[EventCountry "IND"]
[SourceTitle "playchess.com"]
[Source "ChessBase"]
[SourceQuality "1"]
[WhiteTeam "Chile"]
[BlackTeam "Serbia"]
[WhiteTeamCountry "CHI"]
[BlackTeamCountry "SRB"]
[TimeControl "40/5400+30:1800+30"]

{[%evp 9,60,14,14,8,8,5,24,31,30,25,37,35,33,13,12,18,53,51,59,56,51,42,54,27,24,23,26,22,36,32,42,35,36,23,23,33,46,45,38,39,37,24,22,17,17,18,14,18,10,10,13,0,19]} 1. e4 {[%emt 0:00:11]} e5 {[%emt 0:00:08]} 2. Nf3 {[%emt 0:00:06]} Nc6 {[%emt 0:00:05]} 3. Bc4 {[%emt 0:00:06]} d6 {[%emt 0:00:08]} 4. a4 {[%emt 0:03:52]} Be7 {[%emt 0:02:58]} 5. Nc3 {[%emt 0:03:42]} Nf6 {[%emt 0:01:02][%cal Of6e4]} 6. d3 {[%emt 0:00:09] C50: Hungarian Defence and Giuoco Pianissimo.} O-O {[%emt 0:02:37]} 7. O-O {[%emt 0:07:07]} h6 {[%emt 0:03:42]} 8. a5 {[%emt 0:02:42] White has an edge.} a6 {[%emt 0:00:18]} 9. Re1 {[%emt 0:09:34]} Re8 {[%emt 0:01:38]} 10. h3 {[%emt 0:06:21]} Bf8 {[%emt 0:02:27]} 11. Be3 {[%emt 0:03:12]} Be6 {[%emt 0:02:06] [#]} 12. Bxe6 $146 {[%emt 0:01:00]} ({Predecessor:} 12. Nd5 Bxd5 13. exd5 Ne7 14. c3 Qc8 15. Qb3 Nh5 16. Ra4 Ng6 17. Rb4 Nhf4 18. Bxf4 Nxf4 19. Rxb7 {0-1 (36) Movsesian,J (2310)-Krejci,J (2453) Pardubice 2009}) 12... Rxe6 {[%emt 0:00:06]} 13. Nd5 {[%emt 0:04:29]} Nb8 {[%emt 0:06:56]} 14. c4 {[%emt 0:01:36]} Nbd7 {[%emt 0:00:06]} 15. b4 {[%emt 0:17:37]} c6 {[%emt 0:04:04]} 16. Bb6 {[%emt 0:02:09]} Nxb6 {[%emt 0:00:39]} 17. Nxb6 {[%emt 0:00:01]} Rb8 {[%emt 0:00:26]} 18. Qb3 {[%emt 0:01:57]} Qe8 {[%emt 0:13:05]} 19. Rab1 {[%emt 0:05:34]} Be7 {[%emt 0:00:15]} 20. b5 {[%emt 0:10:08]} Bd8 {[%emt 0:00:35]} 21. bxa6 {[%emt 0:02:50]} bxa6 {[%emt 0:00:08]} 22. Qa4 {[%emt 0:02:39][%cal Ob6d5]} Re7 {[%emt 0:05:51]} 23. c5 {[%emt 0:06:56]} dxc5 {[%emt 0:10:33]} 24. Qc4 {[%emt 0:00:28][%csl LRa6,LRc5]} Reb7 {[%emt 0:08:04][%cal Rd8b6]} 25. Qxc5 {[%emt 0:01:09]} Bxb6 {[%emt 0:01:30]} 26. axb6 {[%emt 0:00:07] The position is equal.} ({Avoid the trap} 26. Rxb6 $2 Nd7 27. Qc3 Nxb6 $19) 26... Nd7 {[%emt 0:01:02][%csl LRb6,LRc5]} 27. Qxc6 {[%emt 0:00:23]} Rxb6 {[%emt 0:00:19]} 28. Rxb6 {[%emt 0:00:08]} Rxb6 {[%emt 0:00:21]} 29. Qc7 {[%emt 0:01:19]} Qe6 {[%emt 0:05:59]} 30. Ra1 {[%emt 0:04:45]} Kh7 {[%emt 0:02:18] Weighted Error Value: White=0.05 (flawless) /Black=0.04 (flawless)} 1/2-1/2

[Event "44th Chess Olympiad Women 2022"]
[Site "Chennai"]
[Date "2022.07.30"]
[Round "2.18"]
[White "Reyes Jara, Paula"]
[Black "Velikic, Adela"]
[Result "0-1"]
[ECO "B13"]
[WhiteElo "1858"]
[BlackElo "2273"]
[Annotator "TA"]
[PlyCount "90"]
[EventDate "2022.07.29"]
[EventType "team-tourn"]
[EventCountry "IND"]
[SourceTitle "playchess.com"]
[Source "ChessBase"]
[SourceQuality "1"]
[WhiteTeam "Chile"]
[BlackTeam "Serbia"]
[WhiteTeamCountry "CHI"]
[BlackTeamCountry "SRB"]
[TimeControl "40/5400+30:1800+30"]

{[%evp 14,90,-4,-18,-13,-21,-20,-25,-23,-25,-16,-17,-20,-23,-38,-58,-47,-99,-73,-88,-97,-103,-89,-75,-77,-97,-79,-78,-69,-81,-71,-68,-83,-229,-143,-138,-141,-143,-143,-155,-128,-161,-156,-169,-150,-202,0,-151,-177,-266,-251,-394,-382,-490,-485,-446,-425,-504,-460,-557,-477,-883,-857,-822,-802,-816,-830,-812,-797,-1264,-1235,-29978,-29979,-29983,-29984,-29982,-29975,-29971,-29972]} 1. e4 {[%emt 0:00:07]} c6 {[%emt 0:00:07]} 2. d4 {[%emt 0:00:09]} d5 {[%emt 0:00:05]} 3. exd5 {[%emt 0:00:20]} cxd5 {[%emt 0:00:06]} 4. Bd3 {[%emt 0:00:16]} Nc6 {[%emt 0:00:10]} 5. c3 {[%emt 0:00:34]} Nf6 {[%emt 0:00:18]} 6. Bf4 {[%emt 0:05:33]} Bg4 {[%emt 0:00:22]} 7. f3 {[%emt 0:00:50]} Bh5 {[%emt 0:00:41]} 8. Ne2 {[%emt 0:04:47]} e6 {[%emt 0:01:11] B13: Caro-Kann: Exchange Variation and Panov-Botvinnik Attack.} 9. O-O {[%emt 0:00:32]} Bg6 {[%emt 0:01:21]} 10. Ng3 {[%emt 0:03:20]} Be7 {[%emt 0:06:01] Black has an edge.} 11. Re1 {[%emt 0:01:23] [#]} O-O $146 {[%emt 0:04:33]} ({Predecessor:} 11... a6 12. Bxg6 hxg6 13. a4 Bd6 14. Bxd6 Qxd6 15. Nd2 Qf4 16. Ngf1 O-O 17. Nb3 Rfe8 {0-1 (101) Arzumanian,G (2448)-Eliseev,A (2439) Peterhof 2005}) 12. Bxg6 {[%emt 0:06:12]} hxg6 {[%emt 0:00:08]} 13. Nd2 {[%emt 0:01:20]} b5 {[%emt 0:10:04]} 14. Bg5 {[%emt 0:07:24]} b4 {[%emt 0:20:06]} 15. f4 {[%emt 0:03:33]} (15. Ne2 $15) 15... Rc8 {[%emt 0:07:19]} 16. Nf3 {[%emt 0:09:15]} bxc3 {[%emt 0:09:00]} 17. bxc3 {[%emt 0:00:16]} Na5 {[%emt 0:02:00]} 18. Rc1 {[%emt 0:04:15]} Nc4 {[%emt 0:03:38]} 19. Ne5 {[%emt 0:02:41]} Re8 {[%emt 0:05:23]} 20. Qd3 {[%emt 0:09:30]} Ba3 {[%emt 0:05:53]} 21. Rc2 {[%emt 0:00:57][%cal Oe5g6] [#]} Qc7 $1 {[%emt 0:04:19]} 22. Bxf6 {[%emt 0:08:45]} gxf6 {[%emt 0:00:11]} 23. Ng4 {[%emt 0:00:18]} (23. Nxc4 $17 {is the only way for White.} Qxc4 24. Qd2) 23... Kg7 {[%emt 0:04:46]} 24. Ne2 {[%emt 0:02:27]} Bd6 {[%emt 0:01:33] Active counter play!} 25. Rf1 {[%emt 0:01:37]} Na3 {[%emt 0:03:30]} 26. Rcc1 {[%emt 0:01:31]} ({Not} 26. Qh3 $2 Rh8 27. Qd3 Nxc2 28. Qxc2 g5 $19) 26... Rh8 {[%emt 0:03:28]} 27. g3 {[%emt 0:05:22]} Qc4 {[%emt 0:01:24]} 28. Qd2 {[%emt 0:00:27]} Qa4 {[%emt 0:01:24]} 29. Qd3 {[%emt 0:02:23]} (29. Ne3 $17) 29... Qc4 {[%emt 0:01:10]} 30. Qd2 {[%emt 0:00:11]} Qa6 {[%emt 0:00:14]} 31. Rf3 {[%emt 0:03:48]} (31. Ne3 $142) 31... Nc4 $19 {[%emt 0:01:01]} 32. Qc2 {[%emt 0:00:00]} (32. Qd3 $142) 32... Rb8 {[%emt 0:02:46][%cal Bc8b8,Bb8b2,Bb2d2][%mdl 32]} 33. a4 {[%emt 0:03:46]} Rb2 {[%emt 0:00:00]} 34. Qd1 {[%emt 0:00:03]} Rd2 {[%emt 0:00:00]} 35. Qe1 {[%emt 0:00:58]} Qxa4 {[%emt 0:00:00]} 36. Rf2 {[%emt 0:02:26]} Rb8 {[%emt 0:02:18]} 37. Qf1 {[%emt 0:02:39]} (37. Ne3 $142 Rdb2 38. Nxc4 Qxc4 39. Ra1) 37... f5 {[%emt 0:00:00]} 38. Ra1 {[%emt 0:00:55]} Ra2 {[%emt 0:00:22]} 39. Rxa2 {[%emt 0:05:10]} Qxa2 {[%emt 0:00:04]} 40. Nc1 {[%emt 0:01:00]} Qa1 {[%emt 0:01:15]} 41. Ne5 {[%emt 0:30:36]} Bxe5 {[%emt 0:30:36]} 42. fxe5 {[%emt 0:00:22]} Rb1 {[%emt 0:03:42] Black mates.} 43. Rc2 {[%emt 0:00:00]} Ne3 {[%emt 0:00:00][%csl LRc2,LRf1]} 44. Qf4 {[%emt 0:00:47]} Rxc1+ {[%emt 0:00:00]} 45. Rxc1 {[%emt 0:00:00]} Qxc1+ {[%emt 0:00:00] Weighted Error Value: White=0.53/Black=0.16 (very precise)} 0-1